lending/lending_fUSD_20251018
["ID","MTS","AMOUNT","RATE_DAILY","PERIOD"]
[391743336,1760766503289,-2219.10562557,0.00044642,120]
[391743337,1760766503317,-11311.91032804,0.00044643,120]
[391743338,1760766503345,-1148.12193059,0.00044643,120]
[391743339,1760766503373,-5869.55582201,0.00044645,120]
[391743340,1760766503400,-3782.70741684,0.00044645,120]
[391743341,1760766503429,-6855.54093823,0.0004465,120]
[391743342,1760766503457,-618.37975006,0.00044651,120]
[391743343,1760766503485,-4871.55265743,0.00044652,120]
[391743344,1760766503512,-178.73870518,0.00044653,120]
[391743345,1760766503540,-5096.8663406,0.00044653,120]
[391743346,1760766503568,-597.35920167,0.00044657,120]
[391743347,1760766503601,-500.0,0.00044657,120]
[391743348,1760766503630,-500.0,0.00044657,120]
[391743349,1760766503661,-500.0,0.00044657,120]
[391743350,1760766503694,-500.0,0.00044657,120]
[391743351,1760766503724,-500.0,0.00044657,120]
[391743352,1760766503753,-500.0,0.00044657,120]
[391743353,1760766503782,-1026.91,0.00044657,120]
[391743354,1760766503809,-500.0,0.00044657,120]
[391743355,1760766503838,-500.0,0.00044657,120]
[391743356,1760766503866,-579.25,0.00044657,120]
[391743357,1760766503893,-4502.21,0.00044657,120]
[391743358,1760766503921,-500.0,0.00044657,120]
[391743359,1760766503950,-576.72,0.00044657,120]
[391743360,1760766503978,-500.0,0.00044657,120]
[391743361,1760766504007,-500.0,0.00044657,120]
[391743362,1760766504036,-178.73870518,0.00044657,120]
[391743363,1760766504064,-6890.66907075,0.00044658,120]
[391743364,1760766504093,-1363.21487742,0.00044658,120]
[391743365,1760766504121,-4424.04900369,0.00044659,120]
[391743366,1760766504149,-1272.43032716,0.00044659,120]
[391743367,1760766504178,-3782.70741684,0.0004466,120]
[391743368,1760766504207,-358.05709131,0.0004466,120]
[391743369,1760766504235,-156.57069825,0.00044661,120]
[391743370,1760766504263,-156.57069825,0.00044662,120]
[391743371,1760766504291,-1952.55003034,0.00044664,120]
[391743372,1760766504321,-779.50598275,0.00044664,120]
[391743373,1760766504349,-3797.37525206,0.00044666,120]
[391743374,1760766504376,-4424.04900369,0.00044667,120]
[391743375,1760766504404,-358.05709131,0.0004467,120]
[391743376,1760766504432,-4344.14474746,0.0004467,120]
[391743377,1760766504459,-178.73870518,0.00044672,120]
[391743378,1760766504488,-641.32611037,0.00044672,120]
[391743379,1760766504517,-2219.10562557,0.00044673,120]
[391743380,1760766504544,-4344.14474746,0.00044675,120]
[391743381,1760766504572,-2219.10562557,0.00044676,120]
[391743382,1760766504601,-240.52157222,0.00044677,120]
[391743383,1760766504630,-521175.9437772,0.00044678,120]
[391743384,1760766504658,-5869.55582201,0.00044679,120]
[391743385,1760766504685,-27936.72445806,0.00044679,120]
[391743386,1760766504712,-1272.43032716,0.00044681,120]
[391743387,1760766504741,-7576.60767598,0.00044682,120]
[391743388,1760766504768,-6855.54093823,0.00044682,120]
[391743389,1760766504795,-3494.82131366,0.00044683,120]
[391743390,1760766504823,-4871.55265743,0.00044684,120]
[391743391,1760766504851,-1272.43032716,0.00044685,120]
[391743392,1760766504879,-641.32611037,0.00044688,120]
[391743393,1760766504910,-7576.60767598,0.00044692,120]
[391743394,1760766504942,-1952.55003034,0.00044696,120]
[391743395,1760766504971,-178.73870518,0.00044697,120]
[391743396,1760766505003,-4424.04900369,0.00044697,120]
[391743397,1760766505035,-1363.21487742,0.00044698,120]
[391743398,1760766505065,-779.50598275,0.00044703,120]
[391743399,1760766505093,-156.57069825,0.00044703,120]
[391743400,1760766505121,-3494.82131366,0.00044703,120]
[391743401,1760766505149,-8634.06506594,0.00044704,120]
[391743402,1760766505178,-3797.37525206,0.00044704,120]
[391743403,1760766505206,-1272.43032716,0.00044705,120]
[391743404,1760766505234,-2219.10562557,0.00044706,120]
[391743405,1760766505262,-3782.70741684,0.00044708,120]
[391743406,1760766505291,-3797.37525206,0.0004471,120]
[391743407,1760766505498,-11311.91032804,0.0004471,120]
[391743408,1760766505528,-3797.37525206,0.0004471,120]
[391743409,1760766505558,-521175.9437772,0.0004471,120]
[391743410,1760766505586,-3374.68525721,0.00044712,120]
[391743411,1760766505617,-7576.60767598,0.00044712,120]
[391743412,1760766505646,-4871.55265743,0.00044713,120]
[391743413,1760766505673,-779.50598275,0.00044717,120]
[391743414,1760766505700,-240.52157222,0.00044717,120]
[391743415,1760766505728,-1635.173973,0.00044717,120]
[391743416,1760766505756,-11645.08240152,0.00044722,120]
[391743417,1760766505783,-641.32611037,0.00044722,120]
[391743418,1760766505811,-2219.10562557,0.00044725,120]
[391743419,1760766505839,-11645.08240152,0.00044726,120]
[391743420,1760766505867,-1301.21202487,0.00044727,120]
[391743421,1760766505894,-1272.43032716,0.0004473,120]
[391743422,1760766505922,-3782.70741684,0.0004473,120]
[391743423,1760766505949,-358.05709131,0.00044733,120]
[391743424,1760766505977,-11645.08240152,0.00044734,120]
[391743425,1760766506004,-27066.19553773,0.00044736,120]
[391743426,1760766506032,-1635.173973,0.00044737,120]
[391743427,1760766506060,-156.57069825,0.00044738,120]
[391743428,1760766506088,-240.52157222,0.00044739,120]
[391743429,1760766506116,-39096.83530313,0.0004474,120]
[391743430,1760766506144,-39096.83530313,0.0004474,120]
[391743431,1760766506172,-2691.17432973,0.0004474,120]
[391743432,1760766506200,-8634.06506594,0.00044741,120]
[391743433,1760766506228,-7576.60767598,0.00044742,120]
[391743434,1760766506256,-1363.21487742,0.00044743,120]
[391743435,1760766506284,-8634.06506594,0.00044748,120]
[391743436,1760766506312,-618.37975006,0.00044748,120]
[391743437,1760766506340,-240.52157222,0.00044748,120]
[391743438,1760766506369,-5096.8663406,0.00044751,120]
[391743439,1760766506396,-779.50598275,0.00044755,120]
[391743440,1760766506425,-2219.10562557,0.00044757,120]
[391743441,1760766506453,-6855.54093823,0.00044759,120]
[391743442,1760766506482,-11645.08240152,0.00044761,120]
[391743443,1760766506510,-4344.14474746,0.00044761,120]
[391743444,1760766506539,-1635.173973,0.00044762,120]
[391743445,1760766506566,-6890.66907075,0.00044767,120]
[391743446,1760766506595,-3374.68525721,0.00044769,120]
[391743447,1760766506624,-240.52157222,0.0004477,120]
[391743448,1760766506651,-178.73870518,0.00044771,120]
[391743449,1760766506679,-8634.06506594,0.00044771,120]
[391743450,1760766506707,-1952.55003034,0.00044772,120]
[391743451,1760766506734,-618.37975006,0.00044773,120]
[391743452,1760766506762,-3797.37525206,0.00044774,120]
[391743453,1760766506790,-1635.173973,0.00044775,120]
[391743454,1760766506817,-500.0,0.00044775,120]
[391743455,1760766506845,-500.0,0.00044775,120]
[391743456,1760766506873,-500.0,0.00044775,120]
[391743457,1760766506901,-500.0,0.00044775,120]
[391743458,1760766506928,-500.0,0.00044775,120]
[391743459,1760766506955,-500.0,0.00044775,120]
[391743460,1760766506982,-500.0,0.00044775,120]
[391743461,1760766507010,-500.0,0.00044775,120]
[391743462,1760766507037,-500.0,0.00044775,120]
[391743463,1760766507065,-500.0,0.00044775,120]
[391743464,1760766507094,-500.0,0.00044775,120]
[391743465,1760766507122,-500.0,0.00044775,120]
[391743466,1760766507150,-500.0,0.00044775,120]
[391743467,1760766507177,-500.0,0.00044775,120]
[391743468,1760766507204,-500.0,0.00044775,120]
[391743469,1760766507232,-500.0,0.00044775,120]
[391743470,1760766507259,-500.0,0.00044775,120]
[391743471,1760766507288,-500.0,0.00044775,120]
[391743472,1760766507315,-500.0,0.00044775,120]
[391743473,1760766507343,-500.0,0.00044775,120]
[391743474,1760766507371,-500.0,0.00044775,120]
[391743475,1760766507399,-500.0,0.00044775,120]
[391743476,1760766507431,-500.0,0.00044775,120]
[391743477,1760766507459,-500.0,0.00044775,120]
[391743478,1760766507486,-500.0,0.00044775,120]
[391743479,1760766507514,-500.0,0.00044775,120]
[391743480,1760766507545,-500.0,0.00044775,120]
[391743481,1760766507573,-500.0,0.00044775,120]
[391743482,1760766507605,-754.0,0.00044775,120]
[391743483,1760766507632,-11311.91032804,0.00044776,120]
[391743484,1760766507660,-3374.68525721,0.00044779,120]
[391743485,1760766507690,-1363.21487742,0.0004478,120]
[391743486,1760766507721,-1301.21202487,0.0004478,120]
[391743487,1760766507749,-4424.04900369,0.00044781,120]
[391743488,1760766507777,-1148.12193059,0.00044784,120]
[391743489,1760766507806,-8634.06506594,0.00044785,120]
[391743490,1760766507835,-2691.17432973,0.00044788,120]
[391743491,1760766507868,-3374.68525721,0.00044788,120]
[391743492,1760766507898,-11311.91032804,0.00044788,120]
[391743493,1760766507934,-521175.9437772,0.0004479,120]
[391743494,1760766507967,-27066.19553773,0.00044791,120]
[391743495,1760766507996,-27936.72445806,0.00044792,120]
[391743496,1760766508025,-521175.9437772,0.00044794,120]
[391743497,1760766508053,-3797.37525206,0.00044797,120]
[391743498,1760766508081,-6890.66907075,0.00044799,120]
[391743499,1760766508109,-1363.21487742,0.00044799,120]
[391743500,1760766508137,-195.43,0.000448,30]
[391743501,1760766508167,-2219.10562557,0.00044803,120]
[391743502,1760766508193,-10661.92780751,0.00044804,120]
[391743503,1760766508223,-1301.21202487,0.00044804,120]
[391743504,1760766508255,-1992.79590348,0.00044806,120]
[391743505,1760766508284,-2691.17432973,0.00044808,120]
[391743506,1760766508312,-3494.82131366,0.00044809,120]
[391743507,1760766508341,-39096.83530313,0.00044813,120]
[391743508,1760766508368,-10661.92780751,0.00044815,120]
[391743509,1760766508396,-1952.55003034,0.00044816,120]
[391743510,1760766508589,-178.73870518,0.00044819,120]
[391743511,1760766508619,-4344.14474746,0.00044824,120]
[391743512,1760766508646,-3374.68525721,0.00044824,120]
[391743513,1760766508674,-5096.8663406,0.00044825,120]
[391743514,1760766508700,-779.50598275,0.00044827,120]
[391743515,1760766508728,-4424.04900369,0.00044827,120]
[391743516,1760766508758,-156.57069825,0.00044828,120]
[391743517,1760766508786,-4344.14474746,0.00044829,120]
[391743518,1760766508819,-521175.9437772,0.00044831,120]
[391743519,1760766508847,-1992.79590348,0.00044834,120]
[391743520,1760766508874,-1272.43032716,0.00044834,120]
[391743521,1760766508902,-27936.72445806,0.00044835,120]
[391743522,1760766508931,-1301.21202487,0.00044837,120]
[391743523,1760766508959,-5869.55582201,0.00044839,120]
[391743524,1760766508992,-1148.12193059,0.0004484,120]
[391743525,1760766509023,-1992.79590348,0.0004484,120]
[391743526,1760766509053,-5096.8663406,0.00044844,120]
[391743527,1760766509081,-779.50598275,0.00044844,120]
[391743528,1760766509108,-5869.55582201,0.00044847,120]
[391743529,1760766509136,-641.32611037,0.0004485,120]
[391743530,1760766509162,-45211.95596322,0.0004485,120]
[391743531,1760766509189,-6890.66907075,0.00044851,120]
[391743532,1760766509218,-1148.12193059,0.00044855,120]
[391743533,1760766509247,-3782.70741684,0.00044857,120]
[391743534,1760766509274,-4871.55265743,0.00044858,120]
[391743535,1760766509302,-2691.17432973,0.00044858,120]
[391743536,1760766509331,-1992.79590348,0.0004486,120]
[391743537,1760766509357,-3782.70741684,0.00044862,120]
[391743538,1760766509384,-1992.79590348,0.00044863,120]
[391743539,1760766509411,-27066.19553773,0.00044865,120]
[391743540,1760766509438,-10661.92780751,0.00044866,120]
[391743541,1760766509466,-5096.8663406,0.00044873,120]
[391743542,1760766509493,-521175.9437772,0.00044876,120]
[391743543,1760766509520,-8634.06506594,0.00044879,120]
[391743544,1760766509546,-382749.89431582,0.0004488,120]
[391743546,1760766522592,-157.0,0.00031,120]
[391743547,1760766522623,-157.0,0.000341,120]
[391743548,1760766522673,-157.0,0.000371,120]
[391743549,1760766522723,-151.0,0.0004,120]
[391743550,1760766522751,-151.0,0.0004,120]
[391743551,1760766522782,-151.0,0.0004,120]
[391743552,1760766522811,-151.362189,0.0004,120]
[391743553,1760766522841,-157.0,0.000402,120]
[391743554,1760766522870,-720.0,0.00041,120]
[391743555,1760766522920,-1000.0,0.00041998,30]
[391743556,1760766522951,-1000.0,0.00041998,30]
[391743557,1760766522982,-250.0,0.00041998,30]
[391743558,1760766523013,-151.0,0.00041998,30]
[391743559,1760766523042,-500.0,0.00041998,30]
[391743560,1760766523069,-250.0,0.00041998,30]
[391743561,1760766523102,-1000.0,0.00041998,30]
[391743562,1760766523131,-1000.0,0.00041998,30]
[391743563,1760766523158,-11455.01673214,0.00041998,30]
[391743564,1760766523187,-250.0,0.00041998,30]
[391743565,1760766523215,-250.0,0.00041998,30]
[391743566,1760766523243,-500.0,0.00041998,30]
[391743567,1760766523270,-500.0,0.00041998,30]
[391743568,1760766523298,-250.0,0.00041998,30]
[391743569,1760766523327,-1000.0,0.00041998,30]
[391743570,1760766523358,-1000.0,0.00041998,30]
[391743571,1760766523386,-11878.85235123,0.00041998,30]
[391743572,1760766523413,-250.0,0.00041998,30]
[391743573,1760766523440,-500.0,0.00041998,30]
[391743574,1760766523467,-250.0,0.00041998,30]
[391743575,1760766523494,-1000.0,0.00041998,30]
[391743576,1760766523521,-1000.0,0.00041998,30]
[391743577,1760766523550,-250.0,0.00041998,30]
[391743578,1760766523577,-250.0,0.00041998,30]
[391743579,1760766523609,-500.0,0.00041998,30]
[391743580,1760766523636,-500.0,0.00041998,30]
[391743581,1760766523667,-12318.36988823,0.00041998,30]
[391743582,1760766523696,-250.0,0.00041998,30]
[391743583,1760766523727,-1000.0,0.00041998,30]
[391743584,1760766523757,-1000.0,0.00041998,30]
[391743585,1760766523785,-250.0,0.00041998,30]
[391743586,1760766523813,-250.0,0.00041998,30]
[391743587,1760766523841,-500.0,0.00041998,30]
[391743588,1760766523868,-500.0,0.00041998,30]
[391743589,1760766523898,-12774.14957409,0.00041998,30]
[391743590,1760766523928,-1000.0,0.00041998,30]
[391743591,1760766523959,-1000.0,0.00041998,30]
[391743592,1760766523988,-250.0,0.00041998,30]
[391743593,1760766524019,-500.0,0.00041998,30]
[391743594,1760766524049,-500.0,0.00041998,30]
[391743595,1760766524082,-13246.79310833,0.00041998,30]
[391743596,1760766524111,-1000.0,0.00041998,30]
[391743597,1760766524139,-250.0,0.00041998,30]
[391743598,1760766524167,-250.0,0.00041998,30]
[391743599,1760766524194,-500.0,0.00041998,30]
[391743600,1760766524221,-500.0,0.00041998,30]
[391743601,1760766524250,-13736.92445334,0.00041998,30]
[391743602,1760766524279,-1000.0,0.00041998,30]
[391743603,1760766524308,-250.0,0.00041998,30]
[391743604,1760766524339,-250.0,0.00041998,30]
[391743605,1760766524368,-500.0,0.00041998,30]
[391743606,1760766524396,-500.0,0.00041998,30]
[391743607,1760766524424,-1000.0,0.00041998,30]
[391743608,1760766524451,-250.0,0.00041998,30]
[391743609,1760766524479,-250.0,0.00041998,30]
[391743610,1760766524506,-500.0,0.00041998,30]
[391743611,1760766524533,-500.0,0.00041998,30]
[391743612,1760766524561,-1000.0,0.00041998,30]
[391743613,1760766524587,-250.0,0.00041998,30]
[391743614,1760766524619,-500.0,0.00041998,30]
[391743615,1760766524646,-250.0,0.00041998,30]
[391743616,1760766524851,-250.0,0.00041998,30]
[391743617,1760766524890,-250.0,0.00041998,30]
[391743618,1760766524928,-250.0,0.00041998,30]
[391743619,1760766524959,-250.0,0.00041998,30]
[391743620,1760766524991,-250.0,0.00041998,30]
[391743621,1760766525022,-250.0,0.00041998,30]
[391743622,1760766525053,-250.0,0.00041998,30]
[391743623,1760766525084,-250.0,0.00041998,30]
[391743624,1760766525115,-250.0,0.00041998,30]
[391743625,1760766525144,-250.0,0.00041998,30]
[391743626,1760766525173,-250.0,0.00041998,30]
[391743627,1760766525208,-3000.0,0.00041998,30]
[391743628,1760766525239,-3000.0,0.00041998,30]
[391743629,1760766525270,-500.0,0.00041998,30]
[391743630,1760766525300,-151.0,0.00041998,30]
[391743631,1760766525331,-3000.0,0.00041998,30]
[391743632,1760766525361,-518.5,0.00041998,30]
[391743633,1760766525389,-156.587,0.00041998,30]
[391743634,1760766525418,-151.0,0.00041998,30]
[391743635,1760766525453,-3000.0,0.00041998,30]
[391743636,1760766525483,-537.6845,0.00041998,30]
[391743637,1760766525512,-151.0,0.00041998,30]
[391743638,1760766525541,-162.380719,0.00041998,30]
[391743639,1760766525570,-151.0,0.00041998,30]
[391743640,1760766525601,-151.0,0.00041998,30]
[391743641,1760766525631,-3000.0,0.00041998,30]
[391743642,1760766525658,-151.0,0.00041998,30]
[391743643,1760766525686,-557.5788265,0.00041998,30]
[391743644,1760766525714,-168.3888056,0.00041998,30]
[391743645,1760766525742,-151.0,0.00041998,30]
[391743646,1760766525772,-151.0,0.00041998,30]
[391743647,1760766525802,-3000.0,0.00041998,30]
[391743648,1760766525830,-151.0,0.00041998,30]
[391743649,1760766525860,-578.20924308,0.00041998,30]
[391743650,1760766525888,-174.61919141,0.00041998,30]
[391743651,1760766525923,-151.0,0.00041998,30]
[391743652,1760766525952,-3000.0,0.00041998,30]
[391743653,1760766525981,-151.0,0.00041998,30]
[391743654,1760766526011,-599.60298507,0.00041998,30]
[391743655,1760766526041,-181.08010149,0.00041998,30]
[391743656,1760766526072,-151.0,0.00041998,30]
[391743657,1760766526102,-3000.0,0.00041998,30]
[391743658,1760766526131,-151.0,0.00041998,30]
[391743659,1760766526159,-621.78829552,0.00041998,30]
[391743660,1760766526187,-187.78006525,0.00041998,30]
[391743661,1760766526215,-151.0,0.00041998,30]
[391743662,1760766526242,-3000.0,0.00041998,30]
[391743663,1760766526270,-151.0,0.00041998,30]
[391743664,1760766526297,-644.79446246,0.00041998,30]
[391743665,1760766526324,-194.72792766,0.00041998,30]
[391743666,1760766526351,-151.0,0.00041998,30]
[391743667,1760766526382,-668.65185757,0.00041998,30]
[391743668,1760766526409,-250.0,0.00041998,30]
[391743669,1760766526436,-1000.0,0.00041998,30]
[391743670,1760766526468,-181.53069927,0.00041998,30]
[391743671,1760766526497,-151.0,0.00041998,30]
[391743672,1760766526525,-1000.0,0.00041998,30]
[391743673,1760766526553,-151.0,0.00041998,30]
[391743674,1760766526581,-250.0,0.00041998,30]
[391743675,1760766526609,-151.0,0.00041998,30]
[391743676,1760766526640,-1000.0,0.00041998,30]
[391743677,1760766526668,-250.0,0.00041998,30]
[391743678,1760766526695,-1000.0,0.00041998,30]
[391743679,1760766526722,-250.0,0.00041998,30]
[391743680,1760766526749,-1000.0,0.00041998,30]
[391743681,1760766526777,-151.0,0.00041998,30]
[391743682,1760766526804,-250.0,0.00041998,30]
[391743683,1760766526832,-1000.0,0.00041998,30]
[391743684,1760766526860,-151.0,0.00041998,30]
[391743685,1760766526891,-250.0,0.00041998,30]
[391743686,1760766526918,-250.0,0.00041998,30]
[391743687,1760766526946,-1000.0,0.00041998,30]
[391743688,1760766526973,-250.0,0.00041998,30]
[391743689,1760766527003,-1000.0,0.00041998,30]
[391743690,1760766527031,-250.0,0.00041998,30]
[391743691,1760766527059,-250.0,0.00041998,30]
[391743692,1760766527095,-151.0,0.00042,120]
[391743693,1760766527123,-151.0,0.00042,120]
[391743694,1760766527158,-151.0,0.0004288,120]
[391743695,1760766527200,-157.0,0.000433,120]
[391743696,1760766527233,-407.93599825,0.00043835,120]
[391743697,1760766527264,-161.87012701,0.00043959,30]
[391743698,1760766527304,-151.0,0.00044444,120]
[391743699,1760766527334,-617250.10568472,0.0004488,120]
[391743700,1760766527362,-320.20675479,0.0004488,30]
[391743701,1760766527390,-267.394732,0.0004488,120]
[391743702,1760766527417,-779.50598275,0.00044882,120]
[391743703,1760766527445,-1952.55003034,0.00044883,120]
[391743704,1760766527473,-10661.92780751,0.00044888,120]
[391743705,1760766527505,-358.05709131,0.00044888,120]
[391743706,1760766527532,-39096.83530313,0.00044889,120]
[391743707,1760766527561,-618.37975006,0.00044889,120]
[391743708,1760766527815,-27936.72445806,0.00044889,120]
[391743709,1760766527846,-11311.91032804,0.0004489,120]
[391743710,1760766527876,-10661.92780751,0.00044891,120]
[391743711,1760766527905,-1363.21487742,0.00044893,120]
[391743712,1760766527935,-3494.82131366,0.00044895,120]
[391743713,1760766527968,-1952.55003034,0.00044897,120]
[391743714,1760766527997,-1148.12193059,0.00044897,120]
[391743715,1760766528027,-6855.54093823,0.00044899,120]
[391743716,1760766528057,-358.05709131,0.00044899,120]
[391743717,1760766528087,-1272.43032716,0.000449,120]
[391743718,1760766528117,-27066.19553773,0.00044901,120]
[391743719,1760766528147,-1635.173973,0.00044901,120]
[391743720,1760766528175,-358.05709131,0.00044904,120]
[391743721,1760766528204,-1952.55003034,0.00044907,120]
[391743722,1760766528232,-1148.12193059,0.00044908,120]
[391743723,1760766528260,-27066.19553773,0.00044908,120]
[391743724,1760766528290,-8634.06506594,0.0004491,120]
[391743725,1760766528317,-641.32611037,0.00044911,120]
[391743726,1760766528345,-1301.21202487,0.00044915,120]
[391743727,1760766528372,-358.05709131,0.00044915,120]
[391743728,1760766528399,-1301.21202487,0.00044915,120]
[391743729,1760766528426,-5869.55582201,0.00044916,120]
[391743730,1760766528453,-618.37975006,0.00044917,120]
[391743731,1760766528480,-27936.72445806,0.00044918,120]
[391743732,1760766528508,-2691.17432973,0.00044918,120]
[391743733,1760766528535,-156.57069825,0.00044921,120]
[391743734,1760766528562,-3374.68525721,0.00044921,120]
[391743735,1760766528591,-2691.17432973,0.00044923,120]
[391743736,1760766528621,-5869.55582201,0.00044923,120]
[391743737,1760766528649,-3782.70741684,0.00044924,120]
[391743738,1760766528677,-3494.82131366,0.00044926,120]
[391743739,1760766528705,-6855.54093823,0.00044927,120]
[391743740,1760766528732,-6890.66907075,0.00044928,120]
[391743741,1760766528763,-500.0,0.00044931,120]
[391743742,1760766528790,-500.0,0.00044931,120]
[391743743,1760766528819,-500.0,0.00044931,120]
[391743744,1760766528847,-500.0,0.00044931,120]
[391743745,1760766528875,-500.0,0.00044931,120]
[391743746,1760766528903,-1026.91,0.00044931,120]
[391743747,1760766528931,-500.0,0.00044931,120]
[391743748,1760766528960,-579.25,0.00044931,120]
[391743749,1760766528988,-4502.21,0.00044931,120]
[391743750,1760766529017,-500.0,0.00044931,120]
[391743751,1760766529046,-576.72,0.00044931,120]
[391743752,1760766529074,-500.0,0.00044931,120]
[391743753,1760766529102,-500.0,0.00044931,120]
[391743754,1760766529130,-240.52157222,0.00044932,120]
[391743755,1760766529159,-6855.54093823,0.00044935,120]
[391743756,1760766529189,-5096.8663406,0.00044936,120]
[391743757,1760766529216,-39096.83530313,0.00044938,120]
[391743758,1760766529244,-156.57069825,0.00044938,120]
[391743759,1760766529274,-4424.04900369,0.0004494,120]
[391743760,1760766529302,-10661.92780751,0.0004494,120]
[391743761,1760766529330,-4344.14474746,0.00044941,120]
[391743762,1760766529358,-240.52157222,0.00044942,120]
[391743763,1760766529385,-7576.60767598,0.00044943,120]
[391743764,1760766529413,-5096.8663406,0.00044943,120]
[391743765,1760766529440,-6890.66907075,0.00044945,120]
[391743766,1760766529467,-5869.55582201,0.00044945,120]
[391743767,1760766529493,-1301.21202487,0.00044945,120]
[391743768,1760766529521,-11311.91032804,0.00044949,120]
[391743769,1760766529549,-4871.55265743,0.00044949,120]
[391743770,1760766529576,-3374.68525721,0.0004495,120]
[391743771,1760766529607,-39096.83530313,0.0004495,120]
[391743772,1760766529635,-27066.19553773,0.00044952,120]
[391743773,1760766529665,-10661.92780751,0.00044954,120]
[391743774,1760766529694,-11645.08240152,0.00044954,120]
[391743775,1760766529721,-1148.12193059,0.00044956,120]
[391743776,1760766529749,-1363.21487742,0.00044958,120]
[391743777,1760766529778,-11311.91032804,0.00044958,120]
[391743778,1760766529807,-27066.19553773,0.00044959,120]
[391743779,1760766529839,-4871.55265743,0.0004496,120]
[391743780,1760766529868,-641.32611037,0.00044963,120]
[391743781,1760766529897,-27936.72445806,0.00044965,120]
[391743782,1760766529925,-641.32611037,0.00044965,120]
[391743783,1760766529954,-27936.72445806,0.00044965,120]
[391743784,1760766529983,-4424.04900369,0.00044965,120]
[391743785,1760766530012,-2691.17432973,0.00044966,120]
[391743786,1760766530040,-4871.55265743,0.00044966,120]
[391743787,1760766530069,-11645.08240152,0.00044968,120]
[391743788,1760766530098,-1992.79590348,0.00044972,120]
[391743789,1760766530126,-7576.60767598,0.00044977,120]
[391743790,1760766530155,-6890.66907075,0.00044977,120]
[391743791,1760766530182,-2693.81,0.00044978,76]
[391743792,1760766530210,-618.37975006,0.00044979,120]
[391743793,1760766530238,-1635.173973,0.0004498,120]
[391743794,1760766530266,-39096.83530313,0.0004498,120]
[391743795,1760766530294,-3797.37525206,0.00044982,120]
[391743796,1760766530321,-3494.82131366,0.00044985,120]
[391743797,1760766530349,-4344.14474746,0.00044989,120]
[391743798,1760766530512,-150.0,0.0004499,120]
[391743799,1760766530540,-9532.28485713,0.0004499,120]
[391743800,1760766530568,-300.0,0.0004499,120]
[391743801,1760766530596,-150.0,0.0004499,120]
[391743802,1760766530628,-420.0,0.0004499,120]
[391743803,1760766530656,-289.77170247,0.0004499,120]
[391743804,1760766530684,-178.73870518,0.0004499,120]
[391743805,1760766530712,-618.37975006,0.00044991,120]
[391743806,1760766530740,-7576.60767598,0.00044993,120]
[391743807,1760766530769,-521175.9437772,0.00044994,120]
[391743808,1760766530796,-1992.79590348,0.00044994,120]
[391743809,1760766530824,-3494.82131366,0.00044997,120]
[391743810,1760766530851,-6855.54093823,0.00044998,120]
[391743811,1760766530880,-11645.08240152,0.00044999,120]
[391743812,1760766530910,-1000.0,0.00044999,120]
[391743813,1760766530939,-664.60044806,0.00045,120]
[391743814,1760766530968,-655573.40931739,0.00045,120]
[391743815,1760766530996,-200.0,0.00045,120]
[391743816,1760766531024,-8018.7898744,0.00045,120]
[391743817,1760766531054,-1000000.0,0.00045,120]
[391743818,1760766531083,-1000000.0,0.00045,120]
[391743819,1760766531112,-316405.3303101,0.00045,120]
[391743825,1760766535869,-151.0,0.0004,120]
[391743826,1760766535917,-1000.0,0.00041998,30]
[391743827,1760766535948,-250.0,0.00041998,30]
[391743828,1760766535979,-250.0,0.00041998,30]
[391743829,1760766536008,-250.0,0.00041998,30]
[391743830,1760766536038,-250.0,0.00041998,30]
[391743831,1760766536067,-250.0,0.00041998,30]
[391743832,1760766536096,-250.0,0.00041998,30]
[391743833,1760766536125,-250.0,0.00041998,30]
[391743834,1760766536153,-250.0,0.00041998,30]
[391743835,1760766536180,-200.0,0.00041998,30]
[391743836,1760766536208,-860.0,0.00042,120]
[391743837,1760766536236,-151.0,0.00042,120]
[391743838,1760766536276,-4910.10662394,0.00044923,120]
[391743839,1760766536304,-683594.6696899,0.00045,120]
[391743840,1760766536331,-900000.0,0.00045,120]
[391743841,1760766536358,-588.61516635,0.00045,30]